bitfinex/quotes_ETHUSD_20241116
["timestamp","ask_amount","ask_price","bid_price","bid_amount"]
[1731774214281,3.17643,3148.2,3147.9,0.3171]
[1731774214590,0.06349756,3148.1,3147.5,0.3171]
[1731774214887,0.64157576,3148.4,3147.5,0.3171]
[1731774214888,3.17691,3147.8,3147.5,0.3171]
[1731774215186,3.17672,3147.9,3147.5,0.3171]
[1731774215340,3.24021756,3147.9,3147.4,0.3171]
[1731774215666,3.17684,3147.8,3147.4,0.3171]
[1731774216054,0.06349756,3147.9,3147.4,3.49432]
[1731774216249,3.24022756,3147.9,3147.4,3.49432]
[1731774216471,0.06349756,3147.9,3147.4,3.49432]
[1731774217033,3.17694,3147.7,3147.4,0.3171]
[1731774217285,3.17694,3147.7,3147.3,0.3171]
[1731774217466,3.17678,3147.9,3147.3,3.3171]
[1731774217773,3.24027756,3147.9,3147.3,6.49442]
[1731774218189,0.06349756,3147.9,3147.3,6.49442]
[1731774218471,0.06349756,3147.9,3147.2,0.55]
[1731774218472,0.06349756,3148.0,3147.5,0.3171]
[1731774218681,3.17641,3148.3,3147.6,3.17695]
[1731774218837,0.06349756,3148.2,3147.3,0.3171]
[1731774219037,3.17712,3147.5,3147.3,0.3171]
[1731774219270,3.17712,3147.5,3146.6,3.178]
[1731774219271,3.17739,3147.3,3146.6,3.178]
[1731774219477,3.17743,3147.2,3146.6,3.178]
[1731774219679,3.17705,3147.6,3146.1,3.1885]
[1731774219862,3.24067756,3147.5,3147.0,0.3171]
[1731774220673,3.24067756,3147.5,3147.0,3.3171]
[1731774220869,0.06349756,3147.5,3146.8,3.3171]
[1731774221089,3.17742,3147.3,3146.8,3.3171]
[1731774221293,3.17728,3147.4,3146.8,0.3171]
[1731774221294,3.24099756,3147.2,3146.8,0.3171]
[1731774221463,3.24099756,3147.2,3146.8,3.3171]
[1731774221464,0.06349756,3147.2,3146.8,3.3171]
[1731774221665,3.24087756,3147.3,3146.8,3.3171]
[1731774222285,3.24087756,3147.3,3146.8,0.3171]
[1731774223200,3.24087756,3147.3,3146.6,3.3171]
[1731774223201,3.17745,3147.2,3146.6,3.3171]
[1731774223401,3.17745,3147.2,3146.6,0.3171]
[1731774223908,3.17745,3147.2,3146.6,3.3171]
[1731774224118,0.06349756,3147.3,3146.7,3.17784]
[1731774224469,3.24083756,3147.3,3146.7,3.17784]
[1731774225606,3.17747,3147.2,3146.6,3.3171]
[1731774225815,3.17763,3147.0,3146.6,3.3171]
[1731774226217,0.06349756,3147.6,3146.6,6.49504]
[1731774226420,0.06349756,3147.6,3146.9,3.17766]
[1731774226620,0.06349756,3147.8,3147.0,0.06354934]
[1731774226768,3.1771,3147.6,3146.8,3.72782]
[1731774226973,0.06349756,3147.5,3146.8,3.72782]
[1731774227169,3.17725,3147.4,3146.8,3.72782]
[1731774227412,0.06349756,3147.5,3146.9,3.17769]
[1731774227569,0.06349756,3147.5,3147.0,3.24116597]
[1731774227779,3.24061756,3147.5,3146.9,3.17769]
[1731774228280,0.06349756,3147.5,3146.6,0.8671]
[1731774228499,0.06349756,3147.5,3146.8,3.17776]
[1731774228702,3.24068756,3147.5,3146.8,3.1778]
[1731774229214,0.06349756,3147.5,3147.0,3.17761]
[1731774229417,3.24042756,3147.7,3147.1,3.17752]
[1731774229644,3.17665,3148.0,3147.2,0.06354601]
[1731774230435,3.17702,3147.6,3146.8,3.72774]
[1731774230641,3.24062756,3147.5,3146.9,6.17771]
[1731774230928,3.24062756,3147.5,3147.0,0.55]
[1731774230929,0.06349756,3147.5,3147.0,0.55]
[1731774231092,0.06349756,3147.9,3147.4,3.17716]
[1731774231292,3.17683,3147.8,3147.2,3.1774]
[1731774231486,0.06349756,3147.9,3147.3,3.49499]
[1731774232024,3.24023756,3147.9,3147.3,3.49499]
[1731774232331,3.24022756,3147.9,3147.4,0.3171]
[1731774233633,0.06349756,3147.9,3147.4,0.3171]
[1731774233806,3.17662,3148.0,3147.4,3.49426]
[1731774233992,0.06349756,3147.9,3147.4,3.49426]
[1731774234731,3.24021756,3147.9,3147.3,0.3171]
[1731774234888,3.17683,3147.8,3147.3,0.3171]
[1731774235089,3.17704,3147.6,3147.3,0.3171]
[1731774235291,3.24063756,3147.5,3147.3,0.3171]
[1731774235808,3.1773,3147.4,3147.0,0.3171]
[1731774236197,3.17744,3147.2,3146.7,6.49501]
[1731774236533,3.17744,3147.2,3146.7,3.3171]
[1731774236993,3.07744,3147.2,3146.7,3.3171]
[1731774237696,3.07744,3147.2,3146.7,6.49501]
[1731774240442,3.24088756,3147.3,3146.7,6.49501]
[1731774240650,0.06349756,3147.7,3147.2,3.17736]
[1731774240833,0.06349756,3147.7,3147.1,0.55]
[1731774240834,3.17709,3147.6,3147.1,0.55]
[1731774241142,3.17709,3147.6,3147.0,6.17762]
[1731774241143,3.17723,3147.4,3147.0,0.55]
[1731774241309,3.17704,3147.6,3147.0,0.55]
[1731774241639,3.17668,3148.0,3147.4,3.17712]
[1731774241946,3.24017756,3148.0,3147.5,0.23712885]
[1731774242143,3.17645,3148.2,3147.6,0.23712885]
[1731774242302,0.06349756,3148.1,3147.7,0.23712885]
[1731774242499,0.06349756,3148.1,3147.8,0.23712885]
[1731774242722,3.17623,3148.4,3147.8,0.23712885]
[1731774242723,0.06349756,3148.3,3147.8,0.23712885]
[1731774242926,0.06349756,3148.3,3147.9,0.23712885]
[1731774243140,3.23984756,3148.3,3147.9,0.23712885]
[1731774243345,0.06349756,3148.3,3148.0,0.23712885]
[1731774243640,3.17643,3148.2,3147.6,3.17695]
[1731774243842,3.1767,3148.0,3147.7,0.23722523]
[1731774244017,0.06349756,3148.1,3147.5,3.1771]
[1731774244218,0.06349756,3148.1,3147.8,0.23723998]
[1731774244541,0.06349756,3148.1,3147.9,0.23723998]
[1731774244850,3.23963756,3148.5,3148.0,0.23716731]
[1731774245348,0.06349756,3148.6,3148.1,0.23716731]
[1731774245529,0.06349756,3148.6,3148.2,0.23716731]
[1731774245705,0.06349756,3148.6,3148.3,0.23702039]
[1731774245904,0.06349756,3148.6,3148.0,3.55716479]
[1731774246218,3.17618,3148.5,3148.1,0.23703064]
[1731774246539,3.17638,3148.3,3147.8,0.55]
[1731774246916,3.23997756,3148.2,3147.7,3.3171]
[1731774247119,3.17655,3148.1,3147.6,0.3171]
[1731774247415,3.17648,3148.2,3147.6,3.3171]
[1731774247602,3.17648,3148.2,3147.6,6.49411]
[1731774247940,3.24003756,3148.1,3147.6,6.49411]
[1731774248151,3.24003756,3148.1,3147.5,0.3171]
[1731774248359,3.17663,3148.0,3147.6,0.3171]
[1731774248508,3.17679,3147.9,3147.6,0.3171]
[1731774248816,3.24028756,3147.9,3147.6,0.3171]
[1731774249465,0.59286593,3148.1,3147.6,0.3171]
[1731774249618,3.24001756,3148.1,3147.6,0.3171]
[1731774249821,3.17662,3148.0,3147.6,0.3171]
[1731774250347,0.06349756,3148.1,3147.6,0.3171]
[1731774250348,3.24001756,3148.1,3147.6,3.49411]
[1731774250504,3.1767,3148.0,3147.6,0.3171]
[1731774250705,0.06349756,3147.9,3147.6,0.3171]
[1731774251039,3.1767,3148.0,3147.6,0.3171]
[1731774251410,3.17684,3147.8,3147.4,0.3171]
[1731774251638,0.06349756,3147.7,3147.4,0.3171]
[1731774251958,3.17732,3147.3,3146.7,0.3171]
[1731774252273,0.06349756,3147.2,3146.7,0.666603]
[1731774252409,0.06349756,3147.2,3146.7,0.3171]
[1731774252609,3.24094756,3147.2,3146.7,0.3171]
[1731774252844,0.06349756,3147.2,3146.8,3.17782]
[1731774253058,0.06349756,3147.3,3146.8,3.17782]
[1731774254012,3.24081756,3147.3,3146.8,3.17782]
[1731774254414,3.17751,3147.2,3146.7,3.3171]
[1731774254616,3.17751,3147.2,3146.4,3.17821]
[1731774254617,3.17764,3147.0,3146.5,3.3171]
[1731774255274,3.1774,3147.3,3146.7,3.0]
[1731774255581,3.17754,3147.1,3146.6,3.49513]
[1731774255738,0.06349756,3147.2,3146.7,3.0]
[1731774255937,3.17752,3147.1,3146.7,3.0]
[1731774256192,3.17764,3147.0,3146.6,0.3171]
[1731774256500,3.24112756,3147.0,3146.5,0.3171]
[1731774256786,3.17773,3146.9,3146.5,0.3171]
[1731774256950,0.06349756,3147.0,3146.5,3.49522]
[1731774257283,0.06349756,3147.0,3146.6,3.17802]
[1731774257496,3.24092756,3147.2,3146.6,3.17802]
[1731774257781,0.06349756,3147.1,3146.7,3.17792]
[1731774257979,0.06349756,3147.2,3146.7,3.17792]
[1731774258280,0.06349756,3147.2,3146.8,3.17782]
[1731774258445,3.17713,3147.5,3146.8,3.17782]
[1731774258446,3.24077756,3147.4,3146.8,3.17782]
[1731774258763,3.0699525,3147.3,3146.4,3.0]
[1731774258945,3.17782,3146.9,3146.3,0.3171]
[1731774259143,3.17793,3146.7,3146.1,3.17851]
[1731774259454,0.38764032,3146.6,3146.1,3.17851]
[1731774260344,0.38764032,3146.6,3146.1,3.17844]
[1731774261558,3.56571032,3146.6,3146.0,3.0]
[1731774261890,3.17814,3146.5,3145.9,3.17872]
[1731774262040,0.35022828,3146.4,3145.9,3.17872]
[1731774262252,0.35022828,3146.4,3145.1,0.01]
[1731774262253,3.24192756,3146.3,3145.5,3.17906]
[1731774262598,3.17845,3146.2,3145.5,3.17906]
[1731774262882,3.17845,3146.2,3145.4,3.17915]
[1731774263043,0.32414276,3146.6,3144.9,6.5667825]
[1731774263044,0.38764032,3146.6,3145.3,3.17934]
[1731774263488,3.17875,3145.9,3145.3,3.17934]
[1731774263781,0.06349756,3145.8,3145.4,6.17924]
[1731774263969,0.06349756,3145.8,3145.2,3.0]
[1731774264143,3.24233756,3145.8,3145.2,3.17938]
[1731774264343,3.17894,3145.7,3145.0,3.17957]
[1731774264587,0.06349756,3145.6,3145.1,3.17951]
[1731774264744,3.24262756,3145.6,3144.9,3.17968]
[1731774265247,3.24262756,3145.6,3145.0,3.17961]
[1731774265567,3.56689032,3145.6,3145.0,3.17961]
[1731774265781,3.56689032,3145.6,3145.1,3.0]
[1731774266086,0.38776032,3145.6,3145.0,3.17956]
[1731774266270,3.56681032,3145.6,3145.0,3.12956]
[1731774266471,3.17924,3145.5,3144.8,3.1798]
[1731774266687,0.06349756,3145.5,3145.1,3.17947]
[1731774266840,0.38776032,3145.6,3145.1,3.17947]
[1731774267044,0.38776032,3145.6,3145.2,3.17943]
[1731774267241,0.06349756,3145.6,3145.0,6.17957]
[1731774267498,3.17915,3145.5,3145.0,3.0]
[1731774267649,0.06349756,3145.6,3145.0,3.0]
[1731774267650,0.06349756,3145.4,3145.0,3.0]
[1731774267996,3.17946,3145.2,3144.5,3.51175266]
[1731774268199,0.06349756,3145.1,3144.6,3.0]
[1731774268482,3.17971,3145.0,3144.5,0.33166266]
[1731774268653,0.06349756,3144.9,3144.3,3.18035]
[1731774268840,3.24324756,3144.9,3144.3,3.13035]
[1731774269046,3.59936692,3144.9,3144.3,3.13035]
[1731774269773,3.59936692,3144.9,3144.3,3.18032]
[1731774270045,0.41961692,3144.9,3144.4,3.18025]
[1731774270247,0.06349756,3144.9,3144.4,3.18025]
[1731774270448,3.24324756,3144.9,3144.2,3.18038]
[1731774270687,0.06349756,3144.9,3144.2,3.0]
[1731774270870,3.17997,3144.7,3144.2,3.0]
[1731774271184,0.06349756,3144.6,3144.0,3.0]
[1731774271486,0.06349756,3144.6,3144.2,3.0]
[1731774271650,3.18016,3144.5,3144.0,3.0]
[1731774271844,0.06349756,3144.4,3144.0,3.0]
[1731774272044,0.06349756,3145.1,3144.2,0.55]
[1731774272249,0.06349756,3145.7,3145.1,3.17947]
[1731774272503,3.17897,3145.7,3145.1,3.17947]
[1731774272702,0.06349756,3145.6,3145.2,3.17944]
[1731774273318,0.06349756,3145.7,3145.1,3.17947]
[1731774274185,0.06349756,3145.7,3145.3,3.17934]
[1731774274369,0.06349756,3145.7,3145.4,3.17921]
[1731774275002,0.06349756,3145.9,3145.2,3.0]
[1731774275205,3.24229756,3145.9,3145.2,6.17938]
[1731774275395,3.17886,3145.8,3145.2,3.0]
[1731774275718,3.17905,3145.6,3145.0,6.17964]
[1731774275869,3.24269756,3145.5,3144.9,6.17975]
[1731774276228,3.1794,3145.3,3144.7,3.0]
[1731774276530,0.06349756,3145.2,3144.7,3.0]
[1731774276665,0.06349756,3145.2,3144.7,6.17994]
[1731774276874,0.06349756,3145.2,3144.7,3.0]
[1731774276875,3.24294756,3145.2,3144.7,3.0]
[1731774277070,3.88518232,3145.2,3144.7,3.0]
[1731774277723,3.88518232,3145.2,3144.1,3.18051]
[1731774277724,3.17968,3145.0,3144.1,3.18051]
[1731774277881,3.1799,3144.8,3144.1,3.18048]
[1731774278215,3.24344756,3144.7,3144.1,3.49758]
[1731774278615,3.24344756,3144.7,3144.2,3.18044]
[1731774278819,0.06349756,3144.7,3144.2,3.18044]
[1731774279049,0.06349756,3144.9,3144.2,3.18044]
[1731774279207,0.06349756,3144.9,3144.3,3.18035]
[1731774279387,3.17987,3144.8,3144.3,3.0]
[1731774279590,0.06349756,3144.7,3144.3,3.0]
[1731774280599,3.86888173,3145.0,3144.3,6.18032]
[1731774280600,3.24325756,3144.9,3144.3,6.18032]
[1731774280800,0.70579232,3144.9,3144.3,6.18032]
[1731774281000,0.06349756,3145.0,3144.3,6.18028]
[1731774281301,0.06349756,3145.0,3144.5,3.18007]
[1731774281501,0.06349756,3145.0,3144.5,6.36014]
[1731774281705,3.17945,3145.2,3144.7,3.17994]
[1731774281706,0.06349756,3145.2,3144.7,3.17994]
[1731774282240,0.06349756,3145.3,3145.1,3.17954]
[1731774282541,3.17884,3145.8,3144.8,6.17985]
[1731774282542,3.17932,3145.4,3144.8,6.17985]
[1731774282732,3.24284756,3145.3,3144.8,3.0]
[1731774282906,0.06349756,3145.3,3144.8,6.17983]
[1731774283543,0.06349756,3145.3,3144.9,3.17975]
[1731774283694,0.06349756,3145.6,3145.0,3.1796]
[1731774283889,0.06349756,3145.6,3145.0,3.1296]
[1731774284117,0.06349756,3145.6,3145.1,3.17947]
[1731774284748,0.06349756,3145.6,3144.9,3.17967]
[1731774285257,3.1793,3145.4,3144.7,3.49703]
[1731774285538,0.06349756,3145.3,3144.8,3.0]
[1731774285733,0.06349756,3145.3,3144.9,3.17973]
[1731774286068,0.06349756,3145.3,3144.8,3.0]
[1731774286069,3.24284756,3145.3,3144.8,3.0]
[1731774286401,3.17946,3145.2,3144.6,3.0]
[1731774286600,0.06349756,3145.1,3144.6,3.0]
[1731774286900,3.17976,3144.9,3144.3,3.49744]
[1731774287131,3.24341756,3144.8,3144.4,0.3171]
[1731774287597,0.06349756,3144.8,3144.4,0.3171]
[1731774287995,0.06349756,3144.8,3144.4,3.3171]
[1731774288422,0.06349756,3144.8,3144.4,6.49734]
[1731774288626,0.06349756,3144.9,3144.4,6.49734]
[1731774288835,0.42023289,3144.9,3144.6,0.3171]
[1731774289039,0.06349756,3144.9,3144.6,3.49714]
[1731774289352,0.06349756,3145.1,3144.7,3.49696]
[1731774290226,3.24294756,3145.2,3144.6,0.3171]
[1731774290436,3.24294756,3145.2,3144.6,3.49711]
[1731774290643,0.32429476,3145.1,3144.6,3.49711]
[1731774290825,0.06349756,3145.0,3144.6,3.49711]
[1731774293460,0.06349756,3145.0,3144.7,3.49705]
[1731774293800,3.24314756,3145.0,3144.7,0.3171]
[1731774294092,0.06349756,3145.0,3144.7,0.3171]
[1731774294459,0.35674023,3144.9,3144.5,0.3171]
[1731774294660,0.06349756,3144.8,3144.5,3.49723]
[1731774295056,0.06349756,3144.8,3144.5,0.3171]
[1731774295251,0.06349756,3144.8,3144.5,3.49722]
[1731774295495,0.06349756,3144.8,3144.6,3.17997]
[1731774295662,0.06349756,3145.0,3144.7,0.3171]
[1731774295857,3.17953,3145.2,3144.7,0.3171]
[1731774296195,0.38145056,3145.1,3144.7,0.3171]
[1731774296569,3.56101056,3145.1,3144.7,0.3171]
[1731774297163,0.38145056,3145.1,3144.7,0.3171]
[1731774297481,0.38145056,3145.1,3144.7,3.49698]
[1731774297704,0.06349756,3145.1,3144.7,3.44698]
[1731774297881,3.17938,3145.3,3144.7,0.2671]
[1731774297882,0.06349756,3145.2,3144.7,0.2671]
[1731774298068,0.06349756,3145.2,3144.8,3.17985]
[1731774298505,0.06349756,3145.2,3144.8,3.17984]
[1731774298661,0.06349756,3145.2,3144.9,3.17972]
[1731774299003,0.06349756,3145.4,3144.8,3.17978]
[1731774299173,0.32426376,3145.3,3144.8,3.17978]
[1731774299374,0.06349756,3145.2,3144.8,3.17978]
[1731774299560,0.06349756,3145.2,3144.7,3.39699]
[1731774300063,3.17907,3145.6,3144.9,3.17972]
[1731774300260,3.17907,3145.6,3144.4,0.2171]
[1731774300261,3.1789,3145.8,3145.2,3.17944]
[1731774300493,0.06349756,3145.7,3145.4,3.17917]
[1731774300804,3.24202756,3146.2,3145.6,3.17904]
[1731774300966,0.06349756,3146.2,3145.4,0.2171]
[1731774301162,3.72720723,3146.6,3145.4,0.2171]
[1731774301163,3.0699525,3146.3,3145.4,0.2171]
[1731774301363,3.17904,3145.6,3144.7,0.2671]
[1731774301590,3.0699525,3145.7,3144.7,0.2671]
[1731774301591,3.17973,3145.0,3144.7,0.2671]
[1731774301791,0.06349756,3144.9,3144.7,0.2671]
[1731774302109,0.06349756,3144.9,3144.5,0.2171]
[1731774303806,0.06349756,3144.9,3144.5,3.39724]
[1731774304021,0.38782032,3144.9,3144.5,3.39724]
[1731774304229,0.06349756,3144.9,3144.5,0.2171]
[1731774304402,0.06349756,3145.0,3144.5,3.39723]
[1731774306098,3.18012,3144.6,3144.4,0.2171]
[1731774306307,0.38150956,3144.5,3144.4,0.2171]
[1731774306694,0.38150956,3144.5,3144.4,0.45445631]
[1731774306894,3.56165956,3144.5,3144.4,0.45445631]
[1731774307215,0.38150956,3144.5,3144.1,0.2171]
[1731774307418,0.38150956,3144.5,3144.4,0.23736102]
[1731774307614,3.56165956,3144.5,3144.4,0.23736102]
[1731774307858,0.38150956,3144.5,3144.1,0.2171]
[1731774308014,0.06349756,3144.5,3144.1,0.2171]
[1731774308215,0.06349756,3144.6,3144.1,3.3976]
[1731774308512,0.06349756,3144.6,3144.3,0.2171]
[1731774309061,0.06349756,3144.6,3144.3,3.39739]
[1731774309267,6.35942,3145.0,3144.3,3.39739]
[1731774309268,3.17985,3144.8,3144.3,3.39739]
[1731774309465,0.38783232,3144.7,3144.3,3.39739]
[1731774309617,0.38783232,3144.7,3144.2,0.2171]
[1731774310269,0.38783232,3144.7,3144.2,3.39746]
[1731774310564,0.06349756,3144.7,3144.3,0.2171]
[1731774310761,0.06349756,3144.9,3144.3,0.2171]
[1731774311459,0.06349756,3144.9,3144.2,0.2171]
[1731774311682,11.67972739,3145.3,3144.2,0.2171]
[1731774311683,3.0699525,3145.1,3144.2,0.2171]
[1731774311988,3.18025,3144.4,3144.2,0.2171]
[1731774312282,3.24384756,3144.3,3143.7,3.3171]
[1731774312453,0.06349756,3144.3,3143.7,3.3171]
[1731774312648,0.06349756,3144.3,3143.9,3.18075]
[1731774312853,0.38787432,3144.3,3143.9,3.18075]
[1731774313254,0.38787432,3144.3,3143.7,6.49798]
[1731774313450,3.56825432,3144.3,3143.7,3.3171]
[1731774313664,0.38787432,3144.3,3143.7,6.49799]
[1731774313868,0.38787432,3144.3,3143.8,3.1808]
[1731774314035,0.06349756,3144.3,3143.8,3.1808]
[1731774314232,0.06349756,3144.9,3144.4,3.18018]
[1731774314490,0.06349756,3144.9,3144.2,3.18038]
[1731774314691,3.18017,3144.5,3143.8,3.18079]
[1731774314889,0.38151456,3144.4,3143.9,6.18069]
[1731774315186,3.24376756,3144.4,3143.9,6.18069]
[1731774315335,0.06349756,3144.4,3143.9,3.18068]
[1731774315536,0.06349756,3144.4,3144.0,3.0]
[1731774315785,3.18035,3144.3,3143.8,3.0]
[1731774316078,3.18035,3144.3,3143.8,6.18085]
[1731774316079,0.06349756,3144.2,3143.8,6.18085]
[1731774316690,0.38788232,3144.2,3143.7,0.3171]
[1731774316836,0.38788232,3144.2,3143.7,3.49797]
[1731774317040,3.56835232,3144.2,3143.7,3.49797]
[1731774317937,3.18065,3144.1,3143.6,3.84558157]
[1731774318138,0.06349756,3144.0,3143.6,3.84558157]
[1731774318366,0.32441476,3143.9,3143.3,3.18133]
[1731774318582,0.06349756,3143.8,3143.3,3.18133]
[1731774319096,3.24435756,3143.8,3143.2,0.49767985]
[1731774319450,3.24435756,3143.8,3143.2,3.67913985]
[1731774319800,0.06349756,3143.8,3143.2,3.49767985]
[1731774319970,0.06349756,3143.9,3143.6,3.18097]
[1731774320295,8.75,3144.9,3143.6,3.18097]
[1731774320296,0.06349756,3144.4,3143.8,3.18077]
[1731774320454,3.18037,3144.3,3143.5,0.3171]
[1731774320791,0.38788432,3144.2,3143.4,3.0]
[1731774321093,3.24398756,3144.2,3143.6,3.18099]
[1731774321494,3.18062,3144.1,3143.3,3.0]
[1731774321661,0.06349756,3144.0,3143.3,3.0]
[1731774321861,0.06349756,3144.0,3143.6,3.0]
[1731774322478,3.24415756,3144.0,3143.4,3.0]
[1731774322689,3.24415756,3144.0,3143.4,6.1812]
[1731774322905,3.18076,3143.9,3143.4,6.1812]
[1731774323059,0.06349756,3143.8,3143.3,3.0]
[1731774323260,0.06349756,3143.8,3143.3,6.1813]
[1731774323789,3.1812,3143.5,3143.2,0.3171]
[1731774323985,0.06349756,3143.4,3143.2,0.3171]
[1731774324362,0.38796732,3143.4,3143.2,0.3171]
[1731774324672,0.38796732,3143.4,3143.0,0.3171]
[1731774325068,0.06349756,3143.4,3143.2,3.18146]
[1731774325368,3.18103,3143.7,3143.0,3.49873]
[1731774325578,3.24457756,3143.6,3143.0,3.49873]
[1731774325905,3.18117,3143.5,3143.0,3.49873]
[1731774326203,0.06349756,3143.4,3143.0,3.49868]
[1731774326498,0.06349756,3143.6,3143.1,3.18157]
[1731774326714,3.24456756,3143.6,3143.0,3.4987]
[1731774326923,0.06349756,3144.2,3143.6,3.18098]
[1731774327126,3.18012,3144.6,3143.5,3.0]
[1731774327285,0.38785932,3144.5,3144.0,3.18065]
[1731774327671,0.06349756,3144.5,3144.0,3.18065]
[1731774327876,3.24365756,3144.5,3143.8,6.36156]
[1731774328081,3.24365756,3144.5,3144.0,3.18064]
[1731774329302,3.24365756,3144.5,3143.8,3.18077]
[1731774329505,3.18032,3144.4,3143.8,3.18077]
[1731774329684,3.24390756,3144.3,3143.7,3.0]
[1731774329891,3.24390756,3144.3,3143.7,3.18095]
[1731774330390,3.18048,3144.2,3143.7,3.18095]
[1731774330595,3.18048,3144.2,3143.5,6.18115]
[1731774330596,3.24409756,3144.1,3143.5,6.18115]
[1731774331003,3.18066,3144.0,3143.5,6.18115]
[1731774331201,0.06349756,3143.9,3143.5,6.18115]
[1731774331826,3.18107,3143.6,3143.1,3.18153]
[1731774332134,0.06349756,3143.5,3142.9,6.36342]
[1731774332483,0.06349756,3143.5,3143.0,3.18166]
[1731774332684,0.70606132,3143.5,3143.0,3.18166]
[1731774333138,3.88722132,3143.5,3143.0,3.18166]
[1731774333286,3.88722132,3143.5,3142.9,3.18177]
[1731774333598,3.88722132,3143.5,3142.9,3.1817]
[1731774333941,0.06349756,3143.5,3142.8,0.06363571]
[1731774334146,0.06349756,3143.8,3143.4,3.18125]
[1731774334852,0.06349756,3144.0,3143.6,3.18106]
[1731774335003,0.06349756,3144.0,3143.5,3.18113]
[1731774335211,0.06349756,3144.0,3143.6,3.18098]
[1731774335420,3.24397756,3144.2,3143.6,3.18098]
[1731774335749,3.82301776,3144.1,3143.6,3.18098]
[1731774335948,0.06349756,3144.0,3143.4,6.36245]
[1731774336251,0.06349756,3144.0,3143.6,3.18105]
[1731774336457,0.06349756,3144.0,3143.8,3.1808]
[1731774336609,0.06349756,3144.8,3143.8,3.1808]
[1731774336806,3.18025,3144.5,3143.8,3.18079]
[1731774337011,0.06349756,3144.4,3143.8,3.18079]
[1731774337332,0.06349756,3144.4,3144.0,3.18064]
[1731774337533,0.06349756,3144.6,3144.0,3.18064]
[1731774338104,3.18015,3144.5,3144.0,3.18064]
[1731774338334,0.06349756,3144.4,3144.0,3.18064]
[1731774340548,3.18054,3144.2,3143.2,0.3176]
[1731774340705,0.06349756,3144.4,3143.1,6.18149]
[1731774340706,3.18097,3143.7,3143.1,3.18156]
[1731774340910,0.06349756,3143.6,3143.1,3.1815]
[1731774341105,3.24459756,3143.6,3143.1,3.1815]
[1731774341355,3.88715432,3143.6,3142.9,6.36343]
[1731774341523,3.88715432,3143.6,3143.0,3.18167]
[1731774341758,3.18125,3143.5,3142.9,3.18175]
[1731774341987,0.06349756,3143.4,3142.9,3.18175]
[1731774342348,3.24476756,3143.4,3142.9,3.18175]
[1731774342585,3.18137,3143.3,3142.8,3.0]
[1731774342789,0.06349756,3143.2,3142.7,3.18193]
[1731774343094,0.06349756,3143.2,3142.2,3.3875525]
[1731774343303,0.06349756,3143.2,3142.7,3.1819]
[1731774343450,0.06349756,3143.2,3142.5,3.18211]
[1731774343451,0.32448676,3143.1,3142.5,3.1821]
[1731774343649,0.06349756,3143.0,3142.5,3.1821]
[1731774343879,3.18121,3143.5,3142.7,3.18195]
[1731774344059,3.18143,3143.3,3142.6,3.182]
[1731774344261,0.38799032,3143.2,3142.6,3.18198]
[1731774344461,0.38799032,3143.2,3142.7,3.18192]
[1731774344673,0.38799032,3143.2,3142.8,3.18185]
[1731774345194,3.18127,3143.4,3142.9,3.18175]
[1731774345425,0.06349756,3143.3,3142.9,3.18175]
[1731774346346,0.06349756,3143.3,3143.0,3.18167]
[1731774346547,3.181,3143.7,3142.8,3.18185]
[1731774346548,0.06349756,3143.6,3142.8,3.18185]
[1731774346791,3.18122,3143.5,3142.8,6.36365]
[1731774346993,0.38796932,3143.4,3142.8,6.36359]
[1731774347295,0.38796932,3143.4,3143.0,3.18166]
[1731774347474,0.06349756,3143.4,3143.0,3.18166]
[1731774347994,3.181,3143.7,3143.0,3.18166]
[1731774347995,3.24462756,3143.6,3143.0,3.18166]
[1731774348950,3.18135,3143.4,3142.9,3.18177]
[1731774349178,0.06349756,3143.3,3142.9,3.18177]
[1731774349603,0.06349756,3143.3,3143.0,3.18166]
[1731774349807,0.06349756,3143.4,3143.1,3.18156]
[1731774350475,0.06349756,3143.4,3142.9,3.18173]
[1731774350818,0.06349756,3143.4,3143.0,3.18164]
[1731774350972,3.24456756,3143.6,3143.0,3.18164]
[1731774351174,0.64255376,3143.5,3143.0,3.18164]
[1731774351482,0.06349756,3143.4,3143.0,3.18164]
[1731774351775,0.06349756,3143.5,3143.1,3.18156]
[1731774351975,3.18066,3144.0,3142.9,3.18177]
[1731774352180,3.18107,3143.6,3143.1,3.1815]
[1731774352407,6.2503725,3144.3,3143.1,3.1815]
[1731774352408,0.06349756,3143.5,3143.2,3.18144]
[1731774352726,0.06349756,3143.7,3143.2,3.18144]
[1731774353015,0.06349756,3143.8,3143.3,3.18126]
[1731774353419,3.1807,3144.0,3143.3,3.18126]
[1731774353420,0.06349756,3143.9,3143.5,3.18109]
[1731774353719,0.06349756,3143.9,3143.6,3.18106]
[1731774354443,0.06349756,3144.0,3143.6,3.18106]
[1731774354733,0.06349756,3144.0,3143.5,3.18109]
[1731774356764,0.06349756,3144.0,3143.5,3.18109]
[1731774356922,0.06349756,3144.0,3143.3,3.18133]
[1731774357125,3.18078,3143.9,3143.3,3.18133]
[1731774357325,0.06349756,3143.8,3143.4,3.49879]
[1731774357656,3.18063,3144.1,3143.0,3.0]
[1731774357657,3.18116,3143.5,3143.0,3.0]
[1731774357851,0.06349756,3143.4,3143.0,3.0]
[1731774358351,3.18139,3143.3,3142.7,3.49956]
[1731774358571,0.06349756,3143.2,3142.7,3.49956]
[1731774359057,0.06349756,3143.2,3142.9,3.18175]
[1731774359357,0.06349756,3143.2,3142.7,6.68145]
[1731774359549,0.06349756,3143.2,3142.8,3.18185]
[1731774359925,0.06349756,3143.2,3142.7,3.49949]
[1731774360121,3.18158,3143.1,3142.6,3.0]
[1731774360325,0.06349756,3143.0,3142.4,6.18227]
[1731774360525,0.06349756,3143.0,3142.6,3.0]
[1731774360922,0.06349756,3143.2,3142.8,3.18186]
[1731774361121,0.06349756,3143.5,3143.2,3.18146]
[1731774361412,3.24438756,3143.8,3143.1,3.18149]
[1731774361637,3.56882632,3143.8,3143.1,3.18149]
[1731774362138,3.56882632,3143.8,3143.0,3.18164]
[1731774362139,3.56882632,3143.8,3143.2,3.18141]